[Event "57th Biel Festival ATO 2024"]
[Site "Biel"]
[Date "2024.07.19"]
[Round "4.29"]
[White "Kern, Beat"]
[Black "Jaggy, Enzo"]
[Result "0-1"]
[ECO "D48"]
[WhiteElo "1717"]
[BlackElo "1835"]
[Annotator "NA RC"]
[PlyCount "81"]
[EventDate "2024.07.03"]
[EventType "swiss"]
[EventCountry "SUI"]
[SourceTitle "playchess.com"]
[Source "ChessBase"]
[SourceQuality "1"]
[TimeControl "40/5400+30:1800+30"]

1. Nf3 {[%emt 0:00:07]} d5 {[%emt 0:00:09]} 2. d4 {[%emt 0:00:28]} Nf6 {[%emt 0:00:08]} 3. c4 {[%emt 0:00:34]} c6 {[%emt 0:00:05]} 4. e3 {[%emt 0:00:22]} e6 {[%emt 0:00:08]} 5. Nc3 {[%emt 0:00:32]} Nbd7 {[%emt 0:00:13]} 6. Bd3 {[%emt 0:00:35]} dxc4 {[%emt 0:00:10]} 7. Bxc4 {[%emt 0:00:28]} b5 {[%emt 0:00:08]} 8. Bd3 {[%emt 0:01:06]} Bb7 {[%emt 0:00:50]} 9. O-O {[%emt 0:01:02]} a6 {[%emt 0:01:00]} 10. a3 {[%emt 0:03:05]} c5 {[%emt 0:00:23]} 11. dxc5 {[%emt 0:01:09]} Nxc5 {[%emt 0:00:26]} 12. Bc2 {[%emt 0:00:59]} Nce4 {[%emt 0:03:41]} 13. Nxe4 {[%emt 0:02:09]} Nxe4 {[%emt 0:02:03]} 14. Qxd8+ {[%emt 0:04:03]} Rxd8 {[%emt 0:02:35]} 15. Rd1 {[%emt 0:00:39]} Be7 {[%emt 0:01:08]} 16. Nd2 {[%emt 0:04:58]} O-O {[%emt 0:02:32]} 17. Nxe4 {[%emt 0:05:34]} Bxe4 {[%emt 0:01:56]} 18. Rxd8 {[%emt 0:00:12]} Rxd8 {[%emt 0:00:11]} 19. Bb3 {[%emt 0:01:58]} Bf6 {[%emt 0:08:15]} 20. f3 {[%emt 0:04:35]} Bd5 {[%emt 0:03:51]} 21. Bc2 {[%emt 0:02:24]} Rc8 {[%emt 0:08:16]} 22. Bd3 {[%emt 0:02:02]} Bc4 {[%emt 0:05:39]} 23. Bc2 {[%emt 0:00:52]} Rd8 {[%emt 0:11:10]} 24. Rb1 {[%emt 0:03:30]} Bd3 {[%emt 0:03:20]} 25. Bxd3 {[%emt 0:01:08]} Rxd3 {[%emt 0:00:08]} 26. b4 {[%emt 0:01:53]} Rd1+ {[%emt 0:00:58]} 27. Kf2 {[%emt 0:00:54]} Bc3 {[%emt 0:00:15]} 28. Ke2 {[%emt 0:02:09]} Re1+ {[%emt 0:00:41]} 29. Kd3 {[%emt 0:01:22]} Be5 {[%emt 0:00:15]} 30. Kd2 {[%emt 0:01:25]} Rg1 {[%emt 0:00:17]} 31. g4 {[%emt 0:03:51]} Bxh2 {[%emt 0:01:45]} 32. Rb3 {[%emt 0:02:00]} Rg2+ {[%emt 0:03:09]} 33. Kd1 {[%emt 0:01:23]} f5 {[%emt 0:01:28]} 34. gxf5 {[%emt 0:01:12]} exf5 {[%emt 0:00:44]} 35. Rd3 {[%emt 0:00:58]} Rg6 {[%emt 0:02:33]} 36. f4 {[%emt 0:04:34]} h5 {[%emt 0:02:31]} 37. Rd5 {[%emt 0:02:50]} h4 {[%emt 0:06:10]} 38. Rxf5 {[%emt 0:01:26]} h3 {[%emt 0:00:56]} 39. Rh5 {[%emt 0:01:33]} Rh6 {[%emt 0:00:07]} 40. Rg5 {[%emt 0:00:23]} Bxf4 {[%emt 0:00:10]} 41. exf4 {[%emt 0:31:17]} 0-1

[Event "57th Biel Festival ATO 2024"]
[Site "Biel"]
[Date "2024.07.19"]
[Round "4.30"]
[White "Noel, Lucien"]
[Black "Schaer, Bryan"]
[Result "0-1"]
[ECO "C00"]
[WhiteElo "1714"]
[BlackElo "1803"]
[Annotator "NA RC"]
[PlyCount "60"]
[EventDate "2024.07.03"]
[EventType "swiss"]
[EventCountry "SUI"]
[SourceTitle "playchess.com"]
[Source "ChessBase"]
[SourceQuality "1"]
[TimeControl "40/5400+30:1800+30"]

1. e4 {[%emt 0:00:18]} e6 {[%emt 0:00:18]} 2. Nf3 {[%emt 0:00:14]} d5 {[%emt 0:00:11]} 3. e5 {[%emt 0:00:07]} c5 {[%emt 0:00:23]} 4. b4 {[%emt 0:00:11]} c4 {[%emt 0:01:10]} 5. c3 {[%emt 0:00:44]} Ne7 {[%emt 0:04:01]} 6. d3 {[%emt 0:02:16]} cxd3 {[%emt 0:00:50]} 7. Bxd3 {[%emt 0:00:19]} Ng6 {[%emt 0:00:26]} 8. h4 {[%emt 0:02:32]} Nc6 {[%emt 0:12:55]} 9. Bc2 {[%emt 0:22:42]} Ngxe5 {[%emt 0:05:01]} 10. Nxe5 {[%emt 0:00:55]} Nxe5 {[%emt 0:00:07]} 11. Qe2 {[%emt 0:02:40]} Qc7 {[%emt 0:10:10]} 12. Bf4 {[%emt 0:08:41]} Bd6 {[%emt 0:00:27]} 13. O-O {[%emt 0:00:48]} Bd7 {[%emt 0:04:17]} 14. Re1 {[%emt 0:01:14]} Nc4 {[%emt 0:07:35]} 15. Bg5 {[%emt 0:01:35]} h6 {[%emt 0:01:47]} 16. Qh5 {[%emt 0:00:23]} Rf8 {[%emt 0:09:30]} 17. Be3 {[%emt 0:03:32]} Nxe3 {[%emt 0:04:13]} 18. Rxe3 {[%emt 0:00:09]} Bh2+ {[%emt 0:05:47]} 19. Kh1 {[%emt 0:00:57]} Bf4 {[%emt 0:00:09]} 20. Rf3 {[%emt 0:01:29]} O-O-O {[%emt 0:01:46]} 21. Qg4 {[%emt 0:03:58]} e5 {[%emt 0:05:38]} 22. Bf5 {[%emt 0:03:20]} g6 {[%emt 0:02:04]} 23. Bxd7+ {[%emt 0:00:47]} Qxd7 {[%emt 0:00:41]} 24. Qxd7+ {[%emt 0:00:18]} Rxd7 {[%emt 0:00:12]} 25. g3 {[%emt 0:00:35]} Bc1 {[%emt 0:00:18]} 26. a4 {[%emt 0:00:31]} e4 {[%emt 0:07:48]} 27. Rf6 {[%emt 0:01:08]} Kd8 {[%emt 0:00:07]} 28. g4 {[%emt 0:01:34]} Ke7 {[%emt 0:00:07]} 29. g5 {[%emt 0:00:06]} hxg5 {[%emt 0:00:12]} 30. hxg5 {[%emt 0:00:08]} Bxg5 {[%emt 0:00:24]} 0-1

[Event "57th Biel Festival ATO 2024"]
[Site "Biel"]
[Date "2024.07.19"]
[Round "4.31"]
[White "Meier, Herbert"]
[Black "Kim, Donghan"]
[Result "0-1"]
[ECO "B29"]
[WhiteElo "1678"]
[BlackElo "1746"]
[Annotator "NA RC"]
[PlyCount "68"]
[EventDate "2024.07.03"]
[EventType "swiss"]
[EventCountry "SUI"]
[SourceTitle "playchess.com"]
[Source "ChessBase"]
[SourceQuality "1"]
[TimeControl "40/5400+30:1800+30"]

1. e4 {[%emt 0:00:16]} c5 {[%emt 0:00:08]} 2. Nf3 {[%emt 0:00:34]} Nf6 {[%emt 0:00:12]} 3. Nc3 {[%emt 0:00:42]} d5 {[%emt 0:00:18]} 4. exd5 {[%emt 0:01:24]} Nxd5 {[%emt 0:00:42]} 5. Bb5+ {[%emt 0:02:16]} Bd7 {[%emt 0:02:20]} 6. Bxd7+ {[%emt 0:02:05]} Qxd7 {[%emt 0:01:15]} 7. O-O {[%emt 0:04:41]} Nc6 {[%emt 0:01:43]} 8. Re1 {[%emt 0:01:58]} e6 {[%emt 0:02:04]} 9. d3 {[%emt 0:04:21]} Be7 {[%emt 0:01:06]} 10. Bg5 {[%emt 0:02:57]} Bxg5 {[%emt 0:02:21]} 11. Nxg5 {[%emt 0:00:32]} Nxc3 {[%emt 0:02:55]} 12. bxc3 {[%emt 0:00:06]} O-O {[%emt 0:00:25]} 13. Qh5 {[%emt 0:03:50]} h6 {[%emt 0:00:41]} 14. Ne4 {[%emt 0:00:15]} b6 {[%emt 0:00:18]} 15. Re3 {[%emt 0:07:04]} f5 {[%emt 0:08:50]} 16. Nd2 {[%emt 0:01:25]} e5 {[%emt 0:05:19]} 17. Rae1 {[%emt 0:02:52]} Rae8 {[%emt 0:09:36]} 18. Qe2 {[%emt 0:05:12]} Re7 {[%emt 0:10:34]} 19. f4 {[%emt 0:02:36]} Rfe8 {[%emt 0:03:44]} 20. fxe5 {[%emt 0:05:46]} Rxe5 {[%emt 0:05:08]} 21. Qf2 {[%emt 0:03:40]} Rxe3 {[%emt 0:09:36]} 22. Rxe3 {[%emt 0:00:23]} Rxe3 {[%emt 0:02:16]} 23. Qxe3 {[%emt 0:00:06]} Qd6 {[%emt 0:09:59]} 24. Qe8+ {[%emt 0:09:05]} Kh7 {[%emt 0:00:42]} 25. Qf7 {[%emt 0:00:18]} Qe5 {[%emt 0:07:21]} 26. Nf1 {[%emt 0:01:50]} Ne7 {[%emt 0:01:44]} 27. d4 {[%emt 0:03:22]} cxd4 {[%emt 0:00:22]} 28. cxd4 {[%emt 0:01:17]} Qxd4+ {[%emt 0:00:13]} 29. Kh1 {[%emt 0:00:08]} Qf2 {[%emt 0:00:27]} 30. Qc4 {[%emt 0:00:31]} Ng6 {[%emt 0:01:32]} 31. g3 {[%emt 0:00:51]} Ne5 {[%emt 0:03:38]} 32. Qb5 {[%emt 0:00:37]} a6 {[%emt 0:01:16]} 33. Qxa6 {[%emt 0:00:11]} Nf3 {[%emt 0:00:14]} 34. Qd3 {[%emt 0:02:25]} Qg1# {[%emt 0:00:12]} 0-1

[Event "57th Biel Festival ATO 2024"]
[Site "Biel"]
[Date "2024.07.19"]
[Round "4.33"]
[White "Lachausse, Bruno"]
[Black "Svendsen, Hannelore"]
[Result "1-0"]
[ECO "B14"]
[WhiteElo "1787"]
[BlackElo "1753"]
[Annotator "NA RC"]
[PlyCount "153"]
[EventDate "2024.07.03"]
[EventType "swiss"]
[EventCountry "SUI"]
[SourceTitle "playchess.com"]
[Source "ChessBase"]
[SourceQuality "1"]
[TimeControl "40/5400+30:1800+30"]

1. e4 {[%emt 0:03:06]} c6 {[%emt 0:00:19]} 2. d4 {[%emt 0:00:26]} d5 {[%emt 0:00:13]} 3. exd5 {[%emt 0:00:34]} cxd5 {[%emt 0:00:15]} 4. c4 {[%emt 0:00:12]} Nf6 {[%emt 0:01:01]} 5. Nc3 {[%emt 0:00:26]} e6 {[%emt 0:01:22]} 6. c5 {[%emt 0:00:26]} Nc6 {[%emt 0:01:32]} 7. Nf3 {[%emt 0:00:16]} Be7 {[%emt 0:01:05]} 8. Bd3 {[%emt 0:00:27]} O-O {[%emt 0:00:45]} 9. O-O {[%emt 0:00:34]} Nb4 {[%emt 0:08:17]} 10. Bb1 {[%emt 0:01:49]} b6 {[%emt 0:07:21]} 11. a3 {[%emt 0:01:57]} Nc6 {[%emt 0:00:47]} 12. b4 {[%emt 0:00:40]} bxc5 {[%emt 0:04:15]} 13. bxc5 {[%emt 0:00:22]} Ba6 {[%emt 0:07:16]} 14. Bd3 {[%emt 0:00:37]} Bxd3 {[%emt 0:01:26]} 15. Qxd3 {[%emt 0:02:48]} a6 {[%emt 0:02:54]} 16. Bf4 {[%emt 0:00:29]} Nh5 {[%emt 0:04:06]} 17. Be3 {[%emt 0:01:32]} Na5 {[%emt 0:03:43]} 18. Nd2 {[%emt 0:06:06]} Qc7 {[%emt 0:04:53]} 19. Na4 {[%emt 0:03:22]} Nf4 {[%emt 0:11:39]} 20. Qc2 {[%emt 0:08:04]} Bf6 {[%emt 0:03:14]} 21. Nf3 {[%emt 0:02:41]} Nc4 {[%emt 0:02:49]} 22. g3 {[%emt 0:02:06]} Ng6 {[%emt 0:02:48]} 23. Nd2 {[%emt 0:03:17]} Nxe3 {[%emt 0:02:51]} 24. fxe3 {[%emt 0:00:13]} Rfb8 {[%emt 0:05:38]} 25. Rab1 {[%emt 0:02:19]} Rb5 {[%emt 0:04:21]} 26. Nb6 {[%emt 0:01:43]} Ra7 {[%emt 0:01:42]} 27. a4 {[%emt 0:01:27]} Rxb1 {[%emt 0:00:50]} 28. Rxb1 {[%emt 0:00:54]} Bg5 {[%emt 0:00:57]} 29. Qd3 {[%emt 0:02:51]} Ne7 {[%emt 0:02:13]} 30. Nf3 {[%emt 0:02:09]} Bf6 {[%emt 0:00:58]} 31. Qb3 {[%emt 0:03:39]} Nc6 {[%emt 0:01:22]} 32. Kg2 {[%emt 0:02:00]} g6 {[%emt 0:00:40]} 33. Qc3 {[%emt 0:01:30]} Kg7 {[%emt 0:02:50]} 34. Ne1 {[%emt 0:02:16]} Qd8 {[%emt 0:00:47]} 35. Nd3 {[%emt 0:01:13]} a5 {[%emt 0:02:09]} 36. Qb3 {[%emt 0:02:18]} h5 {[%emt 0:02:16]} 37. Qb5 {[%emt 0:03:43]} Qc7 {[%emt 0:00:00]} 38. Nf4 {[%emt 0:00:47]} Bg5 {[%emt 0:03:56]} 39. h4 {[%emt 0:05:29]} Bxf4 {[%emt 0:01:10]} 40. gxf4 {[%emt 0:00:15]} f6 {[%emt 0:01:36]} 41. Rg1 {[%emt 0:30:59]} Kh6 {[%emt 0:31:46]} 42. Kf2 {[%emt 0:01:32]} Rb7 {[%emt 0:00:00]} 43. Qd3 {[%emt 0:00:00]} Ne7 {[%emt 0:00:00]} 44. Qb5 {[%emt 0:00:00]} Nc6 {[%emt 0:00:00]} 45. Qd3 {[%emt 0:00:00]} Ne7 {[%emt 0:00:00]} 46. Qd2 {[%emt 0:00:00]} Nc6 {[%emt 0:00:00]} 47. Kf3 {[%emt 0:00:00]} Kh7 {[%emt 0:00:00]} 48. Qd3 {[%emt 0:00:00]} Ne7 {[%emt 0:00:00]} 49. e4 {[%emt 0:00:00]} dxe4+ {[%emt 0:00:00]} 50. Qxe4 {[%emt 0:00:00]} Qc6 {[%emt 0:00:00]} 51. Re1 {[%emt 0:00:00]} Qxe4+ {[%emt 0:00:00]} 52. Kxe4 {[%emt 0:00:00]} Nf5 {[%emt 0:00:00]} 53. Kd3 {[%emt 0:00:00]} Re7 {[%emt 0:00:00]} 54. d5 {[%emt 0:00:06]} exd5 {[%emt 0:00:00]} 55. Rxe7+ {[%emt 0:00:12]} Nxe7 {[%emt 0:00:00]} 56. Kd4 {[%emt 0:00:07]} Kg7 {[%emt 0:01:14]} 57. Nxd5 {[%emt 0:01:42]} Nc6+ {[%emt 0:00:05]} 58. Kc4 {[%emt 0:01:03]} Na7 {[%emt 0:01:09]} 59. Nc7 {[%emt 0:00:47]} Kf7 {[%emt 0:00:44]} 60. Kd5 {[%emt 0:01:06]} Ke7 {[%emt 0:00:55]} 61. Ne6 {[%emt 0:01:39]} Nc8 {[%emt 0:01:11]} 62. Nd4 {[%emt 0:00:51]} g5 {[%emt 0:01:12]} 63. fxg5 {[%emt 0:03:01]} fxg5 {[%emt 0:00:02]} 64. hxg5 {[%emt 0:01:09]} h4 {[%emt 0:00:06]} 65. Ke4 {[%emt 0:00:26]} Kf7 {[%emt 0:01:09]} 66. Kf4 {[%emt 0:00:32]} Kg6 {[%emt 0:00:55]} 67. Kg4 {[%emt 0:01:15]} h3 {[%emt 0:00:11]} 68. Nf3 {[%emt 0:00:26]} Ne7 {[%emt 0:01:15]} 69. Kxh3 {[%emt 0:00:19]} Kf5 {[%emt 0:00:55]} 70. Kh4 {[%emt 0:00:43]} Kg6 {[%emt 0:00:09]} 71. Kg4 {[%emt 0:00:32]} Nc6 {[%emt 0:00:29]} 72. Kf4 {[%emt 0:00:51]} Ne7 {[%emt 0:00:19]} 73. Ke5 {[%emt 0:00:29]} Kf7 {[%emt 0:00:49]} 74. Kd6 {[%emt 0:00:44]} Ke8 {[%emt 0:00:37]} 75. c6 {[%emt 0:00:50]} Nc8+ {[%emt 0:00:13]} 76. Kc7 {[%emt 0:02:21]} Ne7 {[%emt 0:00:29]} 77. Kb7 {[%emt 0:00:30]} 1-0

[Event "57th Biel Festival ATO 2024"]
[Site "Biel"]
[Date "2024.07.19"]
[Round "4.34"]
[White "Ahn, Taehyun"]
[Black "Coletta, Julien"]
[Result "0-1"]
[ECO "C90"]
[WhiteElo "1583"]
[BlackElo "1778"]
[Annotator "NA"]
[PlyCount "78"]
[EventDate "2024.07.03"]
[EventType "swiss"]
[EventCountry "SUI"]
[SourceTitle "playchess.com"]
[Source "ChessBase"]
[SourceQuality "1"]
[TimeControl "40/5400+30:1800+30"]

1. e4 {[%emt 0:00:05]} e5 {[%emt 0:00:08]} 2. Nf3 {[%emt 0:00:08]} Nc6 {[%emt 0:00:07]} 3. Bb5 {[%emt 0:00:24]} a6 {[%emt 0:00:09]} 4. Ba4 {[%emt 0:00:05]} Nf6 {[%emt 0:00:08]} 5. O-O {[%emt 0:00:21]} Be7 {[%emt 0:00:10]} 6. Re1 {[%emt 0:00:11]} b5 {[%emt 0:00:07]} 7. Bb3 {[%emt 0:00:25]} d6 {[%emt 0:00:09]} 8. h3 {[%emt 0:05:58]} Na5 {[%emt 0:05:05]} 9. d4 {[%emt 0:32:59]} Nxb3 {[%emt 0:04:53]} 10. axb3 {[%emt 0:01:04]} exd4 {[%emt 0:16:48]} 11. Nxd4 {[%emt 0:01:37]} Bd7 {[%emt 0:02:11]} 12. c4 {[%emt 0:06:50]} O-O {[%emt 0:08:08]} 13. Bd2 {[%emt 0:02:08]} Re8 {[%emt 0:10:00]} 14. Na3 {[%emt 0:06:36]} c5 {[%emt 0:01:50]} 15. Nf3 {[%emt 0:03:40]} b4 {[%emt 0:02:44]} 16. Nc2 {[%emt 0:01:37]} Bc6 {[%emt 0:07:40]} 17. e5 {[%emt 0:09:10]} dxe5 {[%emt 0:04:32]} 18. Nxe5 {[%emt 0:01:07]} Bb7 {[%emt 0:00:43]} 19. Be3 {[%emt 0:12:26]} Qc7 {[%emt 0:03:03]} 20. Bf4 {[%emt 0:04:26]} Bd6 {[%emt 0:02:40]} 21. Qe2 {[%emt 0:03:21]} Nd7 {[%emt 0:02:06]} 22. Ne3 {[%emt 0:06:13]} Nxe5 {[%emt 0:00:45]} 23. Bxe5 {[%emt 0:00:37]} Bxe5 {[%emt 0:00:22]} 24. Ng4 {[%emt 0:00:29]} Bh2+ {[%emt 0:00:28]} 25. Nxh2 {[%emt 0:00:19]} Rxe2 {[%emt 0:00:06]} 26. Rxe2 {[%emt 0:00:09]} Qc6 {[%emt 0:01:36]} 27. Nf3 {[%emt 0:00:27]} Re8 {[%emt 0:00:21]} 28. Rxe8+ {[%emt 0:01:02]} Qxe8 {[%emt 0:00:06]} 29. Re1 {[%emt 0:00:32]} Qa8 {[%emt 0:00:36]} 30. Re3 {[%emt 0:00:26]} Bxf3 {[%emt 0:00:08]} 31. Rxf3 {[%emt 0:00:07]} g6 {[%emt 0:00:21]} 32. Rd3 {[%emt 0:00:48]} Qe4 {[%emt 0:01:08]} 33. Rd5 {[%emt 0:00:31]} Qb1+ {[%emt 0:00:00]} 34. Kh2 {[%emt 0:00:12]} Qxb2 {[%emt 0:00:00]} 35. Rxc5 {[%emt 0:00:29]} Qxb3 {[%emt 0:00:04]} 36. Rc8+ {[%emt 0:00:27]} Kg7 {[%emt 0:00:05]} 37. c5 {[%emt 0:00:57]} Qc3 {[%emt 0:00:25]} 38. c6 {[%emt 0:00:28]} b3 {[%emt 0:00:10]} 39. Rb8 {[%emt 0:00:31]} Qe5+ {[%emt 0:00:16]} 0-1

[Event "57th Biel Festival ATO 2024"]
[Site "Biel"]
[Date "2024.07.19"]
[Round "4.35"]
[White "Van Bogaert, Olivier"]
[Black "Zarriess, Benjamin"]
[Result "1-0"]
[ECO "E07"]
[WhiteElo "1815"]
[BlackElo "1767"]
[Annotator "NA"]
[PlyCount "37"]
[EventDate "2024.07.03"]
[EventType "swiss"]
[EventCountry "SUI"]
[SourceTitle "playchess.com"]
[Source "ChessBase"]
[SourceQuality "1"]
[TimeControl "40/5400+30:1800+30"]

1. c4 {[%emt 0:00:06]} e6 {[%emt 0:00:15]} 2. g3 {[%emt 0:00:14]} d5 {[%emt 0:00:16]} 3. Bg2 {[%emt 0:00:51]} Nf6 {[%emt 0:00:33]} 4. Nf3 {[%emt 0:00:13]} Be7 {[%emt 0:00:43]} 5. O-O {[%emt 0:00:08]} O-O {[%emt 0:00:25]} 6. d4 {[%emt 0:00:19]} Nbd7 {[%emt 0:01:27]} 7. Qd3 {[%emt 0:03:33]} c6 {[%emt 0:02:12]} 8. Nc3 {[%emt 0:03:11]} b6 {[%emt 0:01:47]} 9. b3 {[%emt 0:01:03]} Bb7 {[%emt 0:03:52]} 10. Bf4 {[%emt 0:07:50]} Rc8 {[%emt 0:05:20]} 11. Rfd1 {[%emt 0:01:58]} a6 {[%emt 0:02:27]} 12. e4 {[%emt 0:01:29]} dxe4 {[%emt 0:04:16]} 13. Nxe4 {[%emt 0:00:06]} c5 {[%emt 0:06:36]} 14. Ne5 {[%emt 0:32:20]} Nxe4 {[%emt 0:16:29]} 15. Bxe4 {[%emt 0:00:17]} Nxe5 {[%emt 0:08:45]} 16. Bxe5 {[%emt 0:04:29]} Qe8 {[%emt 0:05:57]} 17. Kg2 {[%emt 0:35:59]} h6 {[%emt 0:33:11]} 18. f3 {[%emt 0:01:05]} g6 {[%emt 0:01:02]} 19. Kg1 {[%emt 0:02:56]} 1-0

[Event "57th Biel Festival ATO 2024"]
[Site "Biel"]
[Date "2024.07.19"]
[Round "4.36"]
[White "Linder, Ernst"]
[Black "Lesniak, Julien"]
[Result "1/2-1/2"]
[ECO "E11"]
[WhiteElo "1765"]
[BlackElo "1728"]
[Annotator "NA RC"]
[PlyCount "69"]
[EventDate "2024.07.03"]
[EventType "swiss"]
[EventCountry "SUI"]
[SourceTitle "playchess.com"]
[Source "ChessBase"]
[SourceQuality "1"]
[TimeControl "40/5400+30:1800+30"]

1. d4 {[%emt 0:00:03]} e6 {[%emt 0:00:25]} 2. Nf3 {[%emt 0:00:51]} Nf6 {[%emt 0:00:49]} 3. c4 {[%emt 0:00:30]} Bb4+ {[%emt 0:01:01]} 4. Nbd2 {[%emt 0:00:43]} O-O {[%emt 0:02:29]} 5. a3 {[%emt 0:00:19]} Bxd2+ {[%emt 0:00:19]} 6. Bxd2 {[%emt 0:00:51]} d5 {[%emt 0:01:32]} 7. e3 {[%emt 0:01:18]} Nbd7 {[%emt 0:03:41]} 8. Rc1 {[%emt 0:01:46]} dxc4 {[%emt 0:04:36]} 9. Bxc4 {[%emt 0:00:36]} b6 {[%emt 0:06:32]} 10. O-O {[%emt 0:00:44]} Bb7 {[%emt 0:00:23]} 11. Be2 {[%emt 0:08:56]} Re8 {[%emt 0:03:27]} 12. b4 {[%emt 0:04:01]} Ne4 {[%emt 0:01:56]} 13. Be1 {[%emt 0:03:27]} Rc8 {[%emt 0:02:20]} 14. Bd3 {[%emt 0:01:05]} Ng5 {[%emt 0:08:16]} 15. Be2 {[%emt 0:04:31]} Ne4 {[%emt 0:06:21]} 16. Kh1 {[%emt 0:05:46]} Ng5 {[%emt 0:07:32]} 17. Bc3 {[%emt 0:02:35]} Nxf3 {[%emt 0:10:33]} 18. Bxf3 {[%emt 0:01:13]} Bxf3 {[%emt 0:01:59]} 19. Qxf3 {[%emt 0:00:20]} c5 {[%emt 0:10:07]} 20. dxc5 {[%emt 0:07:23]} bxc5 {[%emt 0:00:23]} 21. Qg3 {[%emt 0:01:46]} f6 {[%emt 0:03:44]} 22. Rfd1 {[%emt 0:02:20]} cxb4 {[%emt 0:03:07]} 23. axb4 {[%emt 0:02:18]} Qc7 {[%emt 0:02:20]} 24. Qf3 {[%emt 0:05:32]} Ne5 {[%emt 0:01:49]} 25. Qe2 {[%emt 0:00:46]} Qc4 {[%emt 0:01:37]} 26. Qxc4 {[%emt 0:09:20]} Nxc4 {[%emt 0:00:24]} 27. g3 {[%emt 0:01:39]} Re7 {[%emt 0:02:25]} 28. Bd4 {[%emt 0:01:46]} Rec7 {[%emt 0:02:15]} 29. Bc5 {[%emt 0:01:32]} Nb2 {[%emt 0:03:03]} 30. Ra1 {[%emt 0:03:20]} Nxd1 {[%emt 0:01:34]} 31. Rxd1 {[%emt 0:00:26]} a5 {[%emt 0:01:01]} 32. Kg2 {[%emt 0:03:02]} Kf7 {[%emt 0:03:04]} 33. Kf3 {[%emt 0:01:33]} Ra8 {[%emt 0:03:01]} 34. h4 {[%emt 0:01:42]} Rb7 {[%emt 0:01:19]} 35. g4 {[%emt 0:02:33]} 1/2-1/2

[Event "57th Biel Festival ATO 2024"]
[Site "Biel"]
[Date "2024.07.19"]
[Round "4.37"]
[White "Lang, Jochen"]
[Black "Christoffersen, Odd"]
[Result "0-1"]
[ECO "D02"]
[WhiteElo "1755"]
[BlackElo "1676"]
[Annotator "NA RC"]
[PlyCount "82"]
[EventDate "2024.07.03"]
[EventType "swiss"]
[EventCountry "SUI"]
[SourceTitle "playchess.com"]
[Source "ChessBase"]
[SourceQuality "1"]
[TimeControl "40/5400+30:1800+30"]

1. d4 {[%emt 0:00:24]} d5 {[%emt 0:00:15]} 2. Bf4 {[%emt 0:00:46]} e6 {[%emt 0:00:18]} 3. e3 {[%emt 0:00:53]} Bd6 {[%emt 0:00:26]} 4. Bg3 {[%emt 0:00:29]} Nf6 {[%emt 0:00:39]} 5. Nf3 {[%emt 0:01:11]} Bxg3 {[%emt 0:01:16]} 6. hxg3 {[%emt 0:00:13]} c5 {[%emt 0:00:24]} 7. c3 {[%emt 0:00:29]} b6 {[%emt 0:00:47]} 8. Nbd2 {[%emt 0:00:36]} Bb7 {[%emt 0:01:25]} 9. Bd3 {[%emt 0:00:38]} Nbd7 {[%emt 0:03:27]} 10. Qe2 {[%emt 0:06:00]} Ne4 {[%emt 0:05:18]} 11. Bxe4 {[%emt 0:06:13]} dxe4 {[%emt 0:01:04]} 12. Ne5 {[%emt 0:00:36]} Nxe5 {[%emt 0:04:06]} 13. dxe5 {[%emt 0:01:01]} Bd5 {[%emt 0:02:19]} 14. O-O-O {[%emt 0:05:03]} Qg5 {[%emt 0:03:42]} 15. Qb5+ {[%emt 0:04:29]} Kf8 {[%emt 0:02:27]} 16. Nc4 {[%emt 0:08:40]} g6 {[%emt 0:03:16]} 17. Rd2 {[%emt 0:08:15]} Kg7 {[%emt 0:03:22]} 18. Rhd1 {[%emt 0:07:48]} Bxc4 {[%emt 0:01:10]} 19. Qxc4 {[%emt 0:00:19]} Qxe5 {[%emt 0:00:39]} 20. Rd7 {[%emt 0:01:04]} Qf5 {[%emt 0:02:13]} 21. R1d2 {[%emt 0:01:57]} a6 {[%emt 0:01:45]} 22. Rc7 {[%emt 0:05:17]} Rhf8 {[%emt 0:01:56]} 23. Rdd7 {[%emt 0:02:53]} a5 {[%emt 0:07:17]} 24. Qe2 {[%emt 0:02:14]} Rad8 {[%emt 0:02:34]} 25. g4 {[%emt 0:04:21]} Rxd7 {[%emt 0:04:24]} 26. Rxd7 {[%emt 0:01:21]} Qf6 {[%emt 0:02:10]} 27. Qc2 {[%emt 0:02:57]} Qe5 {[%emt 0:04:08]} 28. Qd2 {[%emt 0:02:20]} Rb8 {[%emt 0:05:18]} 29. Kc2 {[%emt 0:02:23]} b5 {[%emt 0:04:35]} 30. Ra7 {[%emt 0:06:50]} a4 {[%emt 0:01:12]} 31. Qd7 {[%emt 0:00:30]} Qf6 {[%emt 0:00:29]} 32. Qd2 {[%emt 0:01:36]} Rd8 {[%emt 0:01:13]} 33. Qe2 {[%emt 0:00:46]} c4 {[%emt 0:01:36]} 34. a3 {[%emt 0:00:40]} Qe5 {[%emt 0:00:32]} 35. f3 {[%emt 0:02:14]} Qd5 {[%emt 0:00:50]} 36. fxe4 {[%emt 0:03:58]} Qxe4+ {[%emt 0:00:28]} 37. Kc1 {[%emt 0:00:16]} Rd3 {[%emt 0:02:14]} 38. Qf2 {[%emt 0:00:48]} Qxe3+ {[%emt 0:00:24]} 39. Qxe3 {[%emt 0:00:13]} Rxe3 {[%emt 0:00:37]} 40. Kd2 {[%emt 0:00:22]} Rg3 {[%emt 0:00:32]} 41. Rb7 {[%emt 0:30:21]} Rxg2+ {[%emt 0:30:27]} 0-1

[Event "57th Biel Festival ATO 2024"]
[Site "Biel"]
[Date "2024.07.19"]
[Round "4.38"]
[White "Ademi, Rexhe"]
[Black "Jordan, Theodor"]
[Result "0-1"]
[ECO "A06"]
[WhiteElo "1635"]
[BlackElo "1894"]
[Annotator "NA RC"]
[PlyCount "62"]
[EventDate "2024.07.03"]
[EventType "swiss"]
[EventCountry "SUI"]
[SourceTitle "playchess.com"]
[Source "ChessBase"]
[SourceQuality "1"]
[TimeControl "40/5400+30:1800+30"]

1. Nf3 {[%emt 0:00:13]} d5 {[%emt 0:00:03]} 2. c3 {[%emt 0:00:24]} c5 {[%emt 0:00:11]} 3. d3 {[%emt 0:00:21]} Nc6 {[%emt 0:00:05]} 4. g3 {[%emt 0:00:33]} e5 {[%emt 0:00:12]} 5. Bg2 {[%emt 0:00:15]} Nf6 {[%emt 0:00:05]} 6. O-O {[%emt 0:00:24]} h6 {[%emt 0:00:02]} 7. Qc2 {[%emt 0:00:43]} Be6 {[%emt 0:00:34]} 8. Nbd2 {[%emt 0:00:29]} Be7 {[%emt 0:00:35]} 9. Qa4 {[%emt 0:01:45]} O-O {[%emt 0:00:40]} 10. e4 {[%emt 0:00:38]} d4 {[%emt 0:00:33]} 11. c4 {[%emt 0:01:01]} Qc7 {[%emt 0:01:23]} 12. a3 {[%emt 0:00:48]} a6 {[%emt 0:00:34]} 13. Qc2 {[%emt 0:01:17]} b5 {[%emt 0:01:15]} 14. b3 {[%emt 0:00:48]} Rab8 {[%emt 0:01:58]} 15. Nh4 {[%emt 0:01:37]} Rfd8 {[%emt 0:01:54]} 16. Qd1 {[%emt 0:01:02]} Qc8 {[%emt 0:02:36]} 17. Nf5 {[%emt 0:00:55]} Rb6 {[%emt 0:03:41]} 18. Nxe7+ {[%emt 0:00:26]} Nxe7 {[%emt 0:00:03]} 19. Nf3 {[%emt 0:00:37]} Ng6 {[%emt 0:00:40]} 20. Bd2 {[%emt 0:00:25]} Rd7 {[%emt 0:01:51]} 21. Qc1 {[%emt 0:01:04]} Kh7 {[%emt 0:00:32]} 22. Kh1 {[%emt 0:01:36]} bxc4 {[%emt 0:00:42]} 23. bxc4 {[%emt 0:00:40]} Rdb7 {[%emt 0:00:30]} 24. Ne1 {[%emt 0:02:07]} Bh3 {[%emt 0:01:32]} 25. f4 {[%emt 0:06:02]} Bxg2+ {[%emt 0:00:49]} 26. Nxg2 {[%emt 0:00:30]} Qh3 {[%emt 0:00:37]} 27. Nh4 {[%emt 0:02:49]} Nxh4 {[%emt 0:00:35]} 28. gxh4 {[%emt 0:00:09]} Ng4 {[%emt 0:00:11]} 29. Rf2 {[%emt 0:04:14]} Nxf2+ {[%emt 0:00:05]} 30. Kg1 {[%emt 0:00:04]} Qf3 {[%emt 0:00:08]} 31. h3 {[%emt 0:01:57]} Rg6+ {[%emt 0:00:06]} 0-1